bitfinex-derivatives/quotes_BTCF0:USTF0_20210706
["timestamp","ask_amount","ask_price","bid_price","bid_amount"]
[1625601311858,0.57645977,34019.0,34018.0,0.74191264]
[1625601315525,1.78837659,34019.0,34018.0,0.74191264]
[1625601316724,1.78837659,34019.0,34018.0,0.40783306]
[1625601318948,1.78837659,34019.0,34018.0,0.16725762]
[1625601319310,0.057,34019.0,34018.0,0.50157533]
[1625601319430,0.77872632,34019.0,34018.0,0.50157533]
[1625601321353,0.77872632,34019.0,34017.0,0.5017024]
[1625601321773,0.77872632,34019.0,34018.0,0.50164512]
[1625601322014,0.77872632,34019.0,34018.0,0.16723261]
[1625601326655,0.77872632,34019.0,34017.0,0.50169784]
[1625601326830,0.77872632,34019.0,34018.0,0.16735499]
[1625601327793,0.77872632,34019.0,34017.0,0.16731226]
[1625601329053,2.1632717,34019.0,34017.0,0.16731226]
[1625601329356,0.77872632,34019.0,34017.0,0.16731226]
[1625601329477,0.01435156,34018.0,34017.0,0.16731226]
[1625601329715,0.01435156,34018.0,34017.0,0.17144788]
[1625601331700,0.01435156,34018.0,34017.0,0.50530986]
[1625601332359,0.01435156,34018.0,34017.0,0.17144788]
[1625601332843,0.01435156,34018.0,34017.0,0.00413562]
[1625601334162,0.01435156,34018.0,34017.0,0.83830695]
[1625601334282,0.01435156,34018.0,34017.0,4.50330695]
[1625601334462,0.01435156,34018.0,34017.0,4.16963842]
[1625601334582,0.01435156,34018.0,34017.0,4.38089842]
[1625601334702,0.01435156,34018.0,34017.0,5.38144021]
[1625601335543,0.01435156,34018.0,34017.0,5.62201565]
[1625601335842,0.72172632,34019.0,34017.0,1.95701565]
[1625601336145,0.0143502,34018.0,34017.0,1.74162003]
[1625601336624,0.0713502,34018.0,34017.0,1.74575517]
[1625601336805,0.0713502,34018.0,34017.0,0.74521338]
[1625601337950,0.0713502,34018.0,34017.0,0.50463794]
[1625601338430,0.0713502,34018.0,34017.0,0.83858032]
[1625601338669,0.0713502,34018.0,34017.0,0.50531133]
[1625601339153,0.0713502,34018.0,34017.0,0.17136895]
[1625601341016,0.0713502,34018.0,34017.0,0.00413514]
[1625601341198,0.0713502,34018.0,34017.0,0.17144075]
[1625601341919,1.45556815,34018.0,34017.0,0.00413514]
[1625601342098,1.45556815,34018.0,34015.0,0.50218136]
[1625601342219,1.45556815,34018.0,34013.0,1.00436272]
[1625601342220,1.45556815,34018.0,34013.0,0.502395]
[1625601342337,3.542,34014.0,34013.0,0.457195]
[1625601342458,3.89308,34014.0,34013.0,0.457195]
[1625601342579,3.90744456,34014.0,34013.0,0.46132628]
[1625601343179,3.85044456,34014.0,34013.0,0.46132628]
[1625601343300,3.90744456,34014.0,34013.0,0.46132628]
[1625601343601,4.14802,34014.0,34013.0,0.46132628]
[1625601345162,4.14802,34014.0,34013.0,0.50616781]
[1625601347261,0.25494,34014.0,34013.0,0.50616781]
[1625601347381,0.24057544,34014.0,34013.0,0.50616781]
[1625601347562,0.24057544,34014.0,34013.0,1.82677202]
[1625601348288,0.24057544,34014.0,34013.0,2.99637498]
[1625601350091,0.29757544,34014.0,34013.0,2.99637498]
[1625601350334,0.29757544,34014.0,34013.0,1.82677202]
[1625601350512,0.31193912,34014.0,34013.0,1.82677202]
[1625601351114,0.31193912,34014.0,34013.0,1.82264074]
[1625601351356,0.31193912,34014.0,34013.0,1.82677175]
[1625601351655,0.55251456,34014.0,34013.0,1.82677175]
[1625601352435,0.53815088,34014.0,34013.0,1.82677175]
[1625601355442,0.53815088,34014.0,34013.0,2.49722747]
[1625601356463,0.55250932,34014.0,34013.0,2.49722747]
[1625601356767,0.48115088,34014.0,34013.0,2.49722747]
[1625601357186,0.48115088,34014.0,34013.0,3.67287945]
[1625601357486,5.24095088,34014.0,34013.0,3.67287945]
[1625601358630,0.48115088,34014.0,34013.0,3.67287945]
[1625601358928,0.48115088,34014.0,34013.0,5.01808763]
[1625601359653,0.53815088,34014.0,34013.0,5.01808763]
[1625601359773,0.77995088,34014.0,34013.0,5.01808763]
[1625601359895,0.79430935,34014.0,34013.0,5.01808763]
[1625601360015,0.79430935,34014.0,34013.0,3.67287945]
[1625601364218,2.18209821,34014.0,34013.0,3.67287945]
[1625601364702,2.18209821,34014.0,34013.0,2.49722747]
[1625601365605,2.27139821,34014.0,34013.0,2.49722747]
[1625601365726,2.27139821,34014.0,34013.0,2.17963747]
[1625601370838,2.27139821,34014.0,34013.0,1.17662326]
[1625601372342,2.27139821,34014.0,34012.0,0.19057718]
[1625601372524,3.83236472,34014.0,34012.0,0.67618954]
[1625601372702,3.83236472,34014.0,34011.0,0.4841874]
[1625601372703,4.16260498,34013.0,34011.0,0.4841874]
[1625601372824,0.057,34012.0,34011.0,0.4841874]
[1625601372944,2.65827604,34012.0,34007.0,1.18342132]
[1625601373064,1.21398066,34008.0,34007.0,1.18342132]
[1625601373185,1.27098066,34008.0,34007.0,1.18342132]
[1625601373306,1.27098066,34008.0,34005.0,1.35285506]
[1625601373426,1.28537444,34008.0,34007.0,0.00412458]
[1625601373606,1.56104856,34006.0,34003.0,0.16951585]
[1625601373728,0.72172632,34004.0,34003.0,0.13101585]
[1625601373846,2.33988065,34004.0,33991.0,1.52683977]
[1625601373966,3.7406,33997.0,33991.0,1.52683977]
[1625601374087,0.40549,33996.0,33990.0,1.52752392]
[1625601374209,0.40549,33996.0,33992.0,0.00412149]
[1625601374507,0.40549,33996.0,33991.0,0.00082154]
[1625601374747,0.40549,33996.0,33988.0,1.52809581]
[1625601374867,0.40549,33996.0,33987.0,1.52871834]
[1625601375046,0.40549,33996.0,33985.0,1.52664515]
[1625601375229,0.90549,33996.0,33988.0,0.00412439]
[1625601375349,2.46488394,33996.0,33988.0,0.00412439]
[1625601375529,1.55946393,33990.0,33977.0,2.79071191]
[1625601375648,0.32419,33989.0,33977.0,2.79071191]
[1625601375768,6.16060176,33978.0,33977.0,2.79071191]
[1625601376068,6.45653176,33978.0,33977.0,1.26412545]
[1625601376308,6.45653176,33978.0,33977.0,1.2014]
[1625601376428,6.45653176,33978.0,33977.0,1.1855]
[1625601376671,6.51353176,33978.0,33977.0,1.1855]
[1625601377272,6.51353176,33978.0,33977.0,1.1466]
[1625601379012,6.45653176,33978.0,33977.0,1.1466]
[1625601379134,6.51353176,33978.0,33977.0,1.1466]
[1625601379317,1.31523176,33978.0,33977.0,1.1466]
[1625601380095,1.25823176,33978.0,33977.0,1.1466]
[1625601380215,0.96230176,33978.0,33977.0,1.1466]
[1625601380634,0.48115088,33978.0,33977.0,1.1466]
[1625601381838,0.72172632,33978.0,33977.0,1.1466]
[1625601382136,0.77872632,33978.0,33977.0,1.1466]
[1625601384779,0.72172632,33978.0,33977.0,1.1466]
[1625601384960,0.72172632,33978.0,33977.0,0.51]
[1625601385320,0.14212632,33978.0,33977.0,0.51]
[1625601385559,0.14212632,33978.0,33977.0,0.17]
[1625601385801,0.2532,33980.0,33977.0,0.65115088]
[1625601385921,4.46037544,33981.0,33980.0,0.0298]
[1625601386581,4.46037544,33981.0,33980.0,0.1998]
[1625601391514,4.46037544,33981.0,33980.0,0.1924]
[1625601391637,4.46037544,33981.0,33980.0,0.0663]
[1625601391815,4.46037544,33981.0,33977.0,0.40105088]
[1625601391994,0.24057544,33979.0,33977.0,0.40105088]
[1625601393259,0.54958544,33979.0,33977.0,0.40105088]
[1625601394761,0.24057544,33979.0,33977.0,0.40105088]
[1625601399451,0.24057544,33979.0,33977.0,0.16047544]
[1625601399578,0.24057544,33979.0,33974.0,0.24057544]
[1625601399997,0.24057544,33975.0,33974.0,0.24057544]
[1625601402762,0.24057544,33975.0,33974.0,0.24449453]
[1625601403962,0.24057544,33975.0,33974.0,0.48506997]
[1625601404204,0.24057544,33975.0,33974.0,0.47936997]
[1625601404624,0.2558808,33975.0,33974.0,0.47936997]
[1625601405408,0.24057544,33975.0,33974.0,0.47936997]
[1625601406066,0.24057544,33979.0,33974.0,0.47936997]
[1625601406431,0.01530472,33978.0,33975.0,0.00391866]
[1625601407995,0.01530472,33978.0,33977.0,0.24057544]
[1625601408294,0.01530472,33978.0,33977.0,0.24449407]
[1625601409981,0.01532076,33984.0,33983.0,0.72172632]
[1625601410098,0.01532076,33984.0,33983.0,1.00275632]
[1625601410221,0.24057544,33989.0,33983.0,5.60675632]
[1625601410460,0.01531975,33984.0,33983.0,5.61067034]
[1625601410758,0.01531954,33988.0,33983.0,5.61067034]
[1625601411121,0.01531954,33988.0,33983.0,1.00667034]
[1625601411301,0.01531954,33988.0,33984.0,0.00391405]
[1625601411541,0.01531954,33988.0,33983.0,1.00275632]
[1625601411662,4.7453,33984.0,33983.0,1.00275632]
[1625601412081,4.76062083,33984.0,33983.0,1.00667075]
[1625601412202,4.76062083,33984.0,33983.0,0.72564075]
[1625601412322,4.76062083,33984.0,33983.0,0.48115088]
[1625601414067,4.76062083,33984.0,33983.0,0.24057544]
[1625601414486,0.01532083,33984.0,33983.0,0.24057544]
[1625601415386,0.01532046,33988.0,33983.0,0.4668097]
[1625601415508,0.01532021,33984.0,33983.0,0.4668097]
[1625601415924,0.01532021,33988.0,33983.0,0.4668097]
[1625601416045,0.24057544,33989.0,33987.0,0.24057544]
[1625601416284,0.33007544,33989.0,33987.0,0.24057544]
[1625601416409,4.81379634,33988.0,33987.0,0.24057544]
[1625601417549,4.90199634,33988.0,33987.0,0.24057544]
[1625601420071,4.81379634,33988.0,33987.0,0.24057544]
[1625601421334,4.77902058,33988.0,33987.0,0.24057544]
[1625601421693,4.81379631,33988.0,33987.0,0.24057544]
[1625601421873,4.77902058,33988.0,33987.0,0.24057544]
[1625601422173,4.8137962,33988.0,33987.0,0.24057544]
[1625601426201,4.77902058,33988.0,33987.0,0.24057544]
[1625601427705,0.01532058,33988.0,33987.0,0.24057544]
[1625601430712,0.01531698,33989.0,33987.0,0.24057544]
[1625601431070,1.03679845,33990.0,33987.0,0.24057544]
[1625601431312,1.0537045,33988.0,33987.0,0.24057544]
[1625601431614,1.05370088,33989.0,33987.0,0.24057544]
[1625601431852,0.01531679,33988.0,33987.0,0.24057544]
[1625601432875,2.9632867,33988.0,33987.0,3.12841897]
[1625601433354,1.74945753,33988.0,33987.0,3.12841897]
[1625601434980,2.96366897,33988.0,33987.0,3.12841897]
[1625601436003,1.74945753,33988.0,33987.0,4.48752233]
[1625601437142,1.74945753,33988.0,33987.0,3.12841897]
[1625601439487,2.96315247,33988.0,33987.0,1.93930693]
[1625601441171,4.35003717,33988.0,33987.0,0.92006804]
[1625601441352,2.96315247,33988.0,33987.0,1.93998026]
[1625601442733,2.96315247,33988.0,33987.0,2.28844026]
[1625601444781,1.74945753,33988.0,33987.0,2.28844026]
[1625601444963,2.96285309,33988.0,33987.0,2.28844026]
[1625601446344,4.34966886,33988.0,33987.0,1.26852804]
[1625601446463,4.34966886,33988.0,33987.0,0.92006804]
[1625601451934,4.34966886,33988.0,33987.0,0.24057544]
[1625601452052,4.68580886,33988.0,33987.0,0.24057544]
[1625601452834,4.68580886,33988.0,33987.0,0.92096734]
[1625601453136,4.68580886,33988.0,33987.0,0.24057544]
[1625601453554,4.68580886,33988.0,33986.0,0.92115271]
[1625601453675,4.68580886,33988.0,33985.0,0.68064687]
[1625601453975,4.33486913,33986.0,33985.0,0.68064687]
[1625601454334,4.57544457,33986.0,33985.0,0.68064687]
[1625601454456,4.59075235,33986.0,33985.0,0.68064687]
[1625601454936,4.62553044,33986.0,33985.0,0.68064687]
[1625601455061,4.62553044,33986.0,33983.0,0.68122569]
[1625601455176,0.0881,33985.0,33983.0,0.68122569]
[1625601455356,0.0881,33985.0,33982.0,0.68157875]
[1625601455357,4.33533524,33984.0,33982.0,0.68157875]
[1625601455476,4.35064242,33984.0,33982.0,0.68157875]
[1625601455717,4.35078892,33983.0,33981.0,0.68191621]
[1625601455958,4.35083169,33982.0,33980.0,0.68195347]
[1625601456199,4.33554028,33981.0,33980.0,0.68195347]
[1625601456318,8.43908785,33981.0,33980.0,0.68195347]
[1625601456438,8.67966329,33981.0,33980.0,0.68195347]
[1625601457713,8.76686329,33981.0,33980.0,0.68195347]
[1625601457957,8.76686329,33981.0,33979.0,1.26344976]
[1625601457958,8.76686329,33981.0,33979.0,0.92272278]
[1625601458135,8.76686329,33981.0,33980.0,0.57758836]
[1625601458136,5.81864735,33981.0,33980.0,0.57758836]
[1625601458376,8.05767412,33981.0,33980.0,0.57758836]
[1625601458735,8.0729837,33981.0,33980.0,0.57758836]
[1625601459816,8.0729837,33981.0,33980.0,1.60050046]
[1625601460057,8.0729837,33981.0,33980.0,0.57758836]
[1625601460297,8.0729837,33981.0,33980.0,1.60053685]
[1625601460536,8.0729837,33981.0,33980.0,0.57758836]
[1625601461019,8.0729837,33981.0,33979.0,0.24057544]
[1625601461377,3.6570089,33980.0,33979.0,0.24057544]
[1625601462461,3.89758434,33980.0,33979.0,0.24057544]
[1625601462580,4.41793834,33980.0,33979.0,0.75242057]
[1625601462820,4.41793834,33980.0,33979.0,1.09366472]
[1625601463483,4.41793834,33980.0,33979.0,0.58181959]
[1625601464568,4.41793834,33980.0,33979.0,0.34124415]
[1625601464747,5.97844287,33980.0,33976.0,0.85377643]
[1625601465053,4.16064172,33977.0,33975.0,0.85382637]
[1625601465168,0.0875,33976.0,33975.0,0.85382637]
[1625601465290,2.68803081,33976.0,33975.0,0.85382637]
[1625601465469,4.24848797,33976.0,33975.0,0.34153055]
[1625601465589,4.26379737,33976.0,33975.0,0.34153055]
[1625601466429,4.50437281,33976.0,33975.0,0.25553055]
[1625601467148,4.50437281,33976.0,33974.0,0.51250664]
[1625601467391,4.17493672,33975.0,33974.0,0.51250664]
[1625601467868,4.17493672,33975.0,33973.0,0.51216865]
[1625601468110,2.77241534,33974.0,33973.0,0.51216865]
[1625601468231,3.03056534,33974.0,33973.0,0.51216865]
[1625601470095,6.90646534,33974.0,33973.0,0.51216865]
[1625601470814,5.69358777,33974.0,33973.0,0.51216865]
[1625601473161,4.65395367,33974.0,33973.0,0.51216865]
[1625601473282,5.69277473,33974.0,33973.0,0.51216865]
[1625601476287,4.65395367,33974.0,33973.0,0.51216865]
[1625601479953,4.66926339,33974.0,33973.0,0.51216865]
[1625601480978,4.65395367,33974.0,33973.0,0.51216865]
[1625601481337,4.65395367,33974.0,33973.0,1.53501505]
[1625601481696,4.13405,33974.0,33973.0,1.53501505]
[1625601482056,4.14936277,33974.0,33973.0,1.53501505]
[1625601482178,3.89121277,33974.0,33973.0,1.53501505]
[1625601482298,0.51912477,33975.0,33973.0,1.53501505]
[1625601482482,0.51907406,33976.0,33974.0,1.53355323]
[1625601482601,0.51907406,33976.0,33975.0,0.24057544]
[1625601482720,0.51905334,33978.0,33975.0,1.77315211]
[1625601482900,0.51904483,33979.0,33977.0,0.51078384]
[1625601483023,0.51904483,33979.0,33978.0,3.7072]
[1625601483138,0.51904483,33979.0,33978.0,4.50077434]
[1625601483380,0.01531098,33979.0,33978.0,5.52159599]
[1625601483681,0.01531081,33980.0,33978.0,5.52159599]
[1625601483859,0.01531081,33980.0,33979.0,1.53104093]
[1625601483979,0.51901719,33981.0,33979.0,1.53104093]
[1625601484159,0.01526357,33980.0,33979.0,1.53104093]
[1625601484580,0.01526357,33980.0,33979.0,1.50184483]
[1625601484882,0.01526357,33980.0,33979.0,2.01227785]
[1625601485423,0.01526357,33980.0,33979.0,0.9915839]
[1625601485424,0.53429858,33980.0,33979.0,0.9915839]
[1625601486685,0.01526357,33980.0,33979.0,2.01250028]
[1625601486924,0.53425103,33980.0,33979.0,0.9915839]
[1625601487408,0.01526357,33980.0,33979.0,2.01234594]
[1625601488434,0.0152635,33981.0,33979.0,2.01234594]
[1625601488794,0.0152635,33981.0,33980.0,1.53085443]
[1625601491320,0.51898546,33982.0,33980.0,1.53085443]
[1625601491500,1.0379017,33983.0,33981.0,0.51037615]
[1625601491801,0.51903784,33982.0,33981.0,0.51037615]
[1625601491922,0.53430156,33982.0,33981.0,0.51037615]
[1625601493067,1.57240992,33982.0,33981.0,0.51037615]
[1625601493728,0.53430156,33982.0,33981.0,0.51037615]
[1625601494569,0.51903784,33982.0,33981.0,1.53108776]
[1625601494748,0.51903784,33982.0,33981.0,0.51037615]
[1625601495830,0.51921491,33983.0,33981.0,1.53090911]
[1625601496431,0.51921404,33984.0,33982.0,1.53046836]
[1625601496671,0.51921404,33984.0,33983.0,0.48115088]
[1625601496794,0.51921404,33984.0,33983.0,2.01119715]
[1625601497692,4.69351404,33984.0,33983.0,2.01119715]
[1625601498592,0.51921404,33984.0,33983.0,2.01119715]
[1625601498712,0.5192687,33985.0,33983.0,2.01119715]
[1625601499075,0.51926851,33984.0,33983.0,0.48115088]
[1625601499314,0.51926258,33985.0,33983.0,2.01136991]
[1625601499494,0.51926258,33985.0,33984.0,1.53011541]
[1625601499614,0.51926258,33985.0,33984.0,1.02007694]
[1625601499975,0.51926258,33985.0,33984.0,1.53010575]
[1625601500820,6.258e-05,33985.0,33984.0,1.53010575]
[1625601501118,0.9736,33990.0,33984.0,4.07605687]
[1625601501359,0.9736,33990.0,33989.0,2.20521477]
[1625601501480,0.9736,33990.0,33989.0,2.55160477]
[1625601502681,0.9736,33990.0,33989.0,3.03275565]
[1625601504368,0.9736,33990.0,33989.0,1.84533231]
[1625601504550,0.9736,33990.0,33989.0,1.49894231]
[1625601504672,2.25204752,33990.0,33989.0,0.48115088]
[1625601505029,2.25204752,33990.0,33989.0,0.56607455]
[1625601505270,3.46302569,33990.0,33989.0,0.48115088]
[1625601505389,3.47828998,33990.0,33989.0,0.48115088]
[1625601505811,4.86224581,33990.0,33989.0,0.48115088]
[1625601506772,5.12816581,33990.0,33989.0,0.48115088]
[1625601508816,4.86224581,33990.0,33989.0,0.48115088]
[1625601509361,3.47828998,33990.0,33989.0,0.48115088]
[1625601509837,3.47828998,33990.0,33989.0,0.56608752]
[1625601510077,3.47828998,33990.0,33989.0,0.48115088]
[1625601510259,3.47828998,33990.0,33989.0,0.56609162]
[1625601510741,3.47828998,33990.0,33989.0,0.48115088]
[1625601514225,3.47828998,33990.0,33989.0,0.69572088]
[1625601514407,3.23771454,33990.0,33989.0,0.69572088]
[1625601515007,2.02673637,33990.0,33989.0,0.78064595]
[1625601515487,2.02673637,33990.0,33989.0,0.69572088]
[1625601515787,0.98886429,33990.0,33989.0,0.69572088]
[1625601516750,2.02652938,33990.0,33989.0,0.69572088]
[1625601516986,2.02652938,33990.0,33989.0,0.78060463]
[1625601518368,2.71828789,33990.0,33989.0,0.78060463]
[1625601518608,2.71828789,33990.0,33989.0,0.56603463]
[1625601518909,2.71828789,33990.0,33989.0,0.48115088]
[1625601519450,3.92872306,33990.0,33989.0,0.48115088]
[1625601520597,5.31212824,33990.0,33989.0,0.48115088]
[1625601520777,5.55270368,33990.0,33989.0,0.48115088]
[1625601520898,4.1692985,33990.0,33989.0,0.48115088]
[1625601522761,2.95886333,33990.0,33989.0,0.48115088]
[1625601523000,4.16921372,33990.0,33989.0,0.48115088]
[1625601523122,3.92863828,33990.0,33989.0,0.48115088]
[1625601523359,2.71828789,33990.0,33989.0,0.48115088]
[1625601523961,3.92860498,33990.0,33989.0,0.48115088]
[1625601526605,2.71828789,33990.0,33989.0,0.48115088]
[1625601527272,3.92883025,33990.0,33989.0,0.48115088]
[1625601527746,2.71828789,33990.0,33989.0,0.48115088]
[1625601527986,2.71828789,33990.0,33989.0,0.56611941]
[1625601528231,3.92900376,33990.0,33989.0,0.48115088]
[1625601528467,2.71828789,33990.0,33989.0,0.56611888]
[1625601528766,4.16958972,33990.0,33989.0,0.48115088]
[1625601528949,4.16958972,33990.0,33989.0,0.56614456]
[1625601529188,4.16958972,33990.0,33989.0,0.48115088]
[1625601531477,5.55396126,33990.0,33989.0,0.48115088]
[1625601532199,5.58873453,33990.0,33986.0,0.25547449]
[1625601532321,0.0883,33989.0,33986.0,0.25547449]
[1625601532500,4.32801461,33987.0,33983.0,0.08526324]
[1625601532801,0.48115088,33982.0,33981.0,0.25590258]
[1625601532923,4.80937879,33982.0,33980.0,0.25599343]
[1625601533161,2.94329303,33981.0,33980.0,0.25599343]
[1625601533281,2.95856084,33981.0,33980.0,0.25599343]
[1625601533461,2.95856084,33981.0,33980.0,0.08533114]
[1625601533642,4.34360997,33981.0,33979.0,0.49673336]
[1625601533885,2.94404085,33980.0,33979.0,0.49673336]
[1625601534123,4.34459154,33980.0,33979.0,0.49673336]
[1625601535207,2.95930919,33980.0,33979.0,0.49673336]
[1625601535327,2.95930919,33980.0,33979.0,0.41133198]
[1625601535627,2.95930919,33980.0,33979.0,0.24057544]
[1625601537433,4.3447851,33980.0,33979.0,0.49690163]
[1625601537612,2.95930919,33980.0,33979.0,0.41145957]
[1625601537794,4.34511593,33980.0,33979.0,0.24057544]
[1625601538033,4.34511593,33980.0,33979.0,0.41148394]
[1625601538272,4.34511593,33980.0,33979.0,0.49694661]
[1625601538819,4.34511593,33980.0,33979.0,0.41148394]
[1625601538936,4.34511593,33980.0,33979.0,0.49697302]
[1625601539654,4.34511593,33980.0,33979.0,0.24057544]
[1625601540436,2.95930919,33980.0,33979.0,0.92422989]
[1625601541820,2.95930919,33980.0,33979.0,1.9493626]
[1625601541938,2.94404085,33980.0,33979.0,1.9493626]
[1625601542061,1.73182948,33980.0,33979.0,3.14530601]
[1625601542302,0.69276642,33980.0,33979.0,3.14530601]
[1625601542546,0.69276642,33980.0,33979.0,4.51145434]
[1625601542903,1.03973157,33982.0,33979.0,4.75202978]
[1625601542904,0.69319007,33982.0,33979.0,4.75202978]
[1625601543144,0.69319007,33982.0,33981.0,4.26615843]
[1625601543626,0.69319885,33983.0,33981.0,4.26615843]
[1625601543802,0.69319885,33983.0,33982.0,2.90065041]
[1625601544045,1.73289636,33983.0,33982.0,2.90065041]
[1625601544285,0.69319885,33983.0,33982.0,2.90065041]
[1625601544465,1.7329398,33983.0,33982.0,2.90065041]
[1625601544826,1.7329398,33983.0,33982.0,3.14122585]
[1625601545307,0.69319885,33983.0,33982.0,3.14122585]
[1625601545667,0.69319885,33983.0,33982.0,4.50619447]
[1625601545847,0.69319885,33983.0,33982.0,3.14122585]
[1625601546089,0.69323501,33984.0,33982.0,4.50589719]
[1625601546330,0.69323501,33984.0,33983.0,4.26563847]
[1625601546450,0.69323501,33984.0,33983.0,4.49871847]
[1625601546812,1.03976588,33985.0,33983.0,4.49871847]
[1625601546813,0.69324701,33985.0,33983.0,4.49871847]
[1625601546993,0.69324701,33985.0,33984.0,0.24057544]
[1625601547115,1.03980366,33985.0,33984.0,3.14225811]
[1625601547412,2.94617698,33985.0,33984.0,1.9474476]
[1625601547533,2.96143764,33985.0,33984.0,1.9474476]
[1625601549155,1.74833824,33985.0,33984.0,1.9474476]
[1625601549513,1.73307758,33985.0,33984.0,1.9474476]
[1625601549636,1.73307758,33985.0,33984.0,3.14253405]
[1625601549874,0.69327392,33985.0,33984.0,3.14253405]
[1625601550123,0.69327392,33985.0,33984.0,4.50790306]
[1625601550356,0.69324085,33986.0,33984.0,4.50790306]
[1625601550656,0.69324247,33987.0,33985.0,4.2650245]
[1625601550896,0.69324247,33987.0,33986.0,4.50525388]
[1625601551138,0.69324247,33987.0,33986.0,3.14055678]
[1625601551379,0.69324247,33987.0,33986.0,4.50524475]
[1625601552040,1.73301016,33987.0,33986.0,3.14055678]
[1625601552219,6.64011016,33987.0,33986.0,3.14055678]
[1625601552700,7.85322031,33987.0,33986.0,1.94644682]
[1625601553304,7.86848035,33987.0,33986.0,1.94644682]
[1625601553724,2.96138035,33987.0,33986.0,1.94644682]
[1625601554085,1.73301016,33987.0,33986.0,3.14156496]
[1625601554386,1.73301016,33987.0,33986.0,7.68936496]
[1625601555287,0.69324247,33987.0,33986.0,9.05487842]
[1625601555405,2.18661714,33990.0,33986.0,9.05487842]
[1625601555406,0.69319649,33989.0,33986.0,9.05487842]
[1625601555587,0.69319649,33989.0,33986.0,4.50707842]
[1625601555706,1.66675815,33990.0,33988.0,4.26379135]
[1625601556006,0.69316108,33989.0,33988.0,1.36441323]
[1625601556186,1.66674821,33990.0,33988.0,4.26321335]
[1625601556307,4.8322,33989.0,33988.0,4.26321335]
[1625601556429,4.8322,33989.0,33986.0,0.24057544]
[1625601556666,4.8322,33989.0,33988.0,4.26687032]
[1625601556965,4.8322,33989.0,33988.0,4.50744576]
[1625601557872,1.66674821,33990.0,33988.0,4.50744576]
[1625601557992,1.66674821,33990.0,33989.0,2.90619954]
[1625601558894,2.70631853,33990.0,33989.0,2.90619954]
[1625601559555,1.66674821,33990.0,33989.0,2.90619954]
[1625601560274,2.70624952,33990.0,33989.0,2.90619954]
[1625601560454,1.66674821,33990.0,33989.0,2.90619954]
[1625601560696,2.70622288,33990.0,33989.0,2.90619954]
[1625601561179,3.91895641,33990.0,33989.0,1.70952914]
[1625601562079,3.2258082,33990.0,33989.0,1.70952914]
[1625601563342,4.61208306,33990.0,33989.0,1.70952914]
[1625601565261,4.61208306,33990.0,33989.0,2.02905914]
[1625601565381,3.2258082,33990.0,33989.0,2.02905914]
[1625601565622,3.2258082,33990.0,33989.0,3.23043997]
[1625601565864,2.01307467,33990.0,33989.0,3.23043997]
[1625601566344,0.9736,33990.0,33989.0,8.30695801]
[1625601566463,0.69319052,33991.0,33989.0,8.30695801]
[1625601566824,0.69319052,33991.0,33990.0,4.28646992]
[1625601567004,0.69319052,33991.0,33990.0,4.52704536]
[1625601567426,0.69310393,33992.0,33990.0,4.52704536]
[1625601567671,0.69310393,33992.0,33991.0,4.2861128]
[1625601567911,0.69310393,33992.0,33991.0,2.9145567]
[1625601568213,0.69310393,33992.0,33991.0,4.28594162]
[1625601569355,0.69310393,33992.0,33991.0,4.28987337]
[1625601569836,0.69292155,33993.0,33991.0,4.28987337]
[1625601570078,0.69292155,33993.0,33992.0,2.91395893]
[1625601570920,0.69292155,33993.0,33991.0,1.37138492]
[1625601571098,0.69292155,33993.0,33992.0,0.24057544]
[1625601571218,0.69292155,33993.0,33992.0,3.15386532]
[1625601571398,0.69292155,33993.0,33992.0,0.24057544]
[1625601571760,0.69292155,33993.0,33992.0,3.15358668]
[1625601574102,1.03893668,33995.0,33992.0,3.15358668]
[1625601574103,0.69268255,33994.0,33992.0,3.15358668]
[1625601574342,0.69268255,33994.0,33993.0,2.91110721]
[1625601575067,0.69268255,33994.0,33993.0,3.15168265]
[1625601579518,0.70793925,33994.0,33993.0,3.15168265]
[1625601580542,0.0152567,33994.0,33993.0,3.15168265]
[1625601580661,0.69229908,33995.0,33993.0,3.15561531]
[1625601580785,0.69229908,33995.0,33994.0,2.90925097]
[1625601581082,1.03844471,33996.0,33994.0,3.14982641]
[1625601581083,0.69226559,33996.0,33994.0,3.14982641]
[1625601581323,1.03831187,33997.0,33995.0,1.71143253]
[1625601581566,1.03831187,33997.0,33995.0,1.02685952]
[1625601581684,1.05352207,33996.0,33995.0,1.02685952]
[1625601582525,0.01525621,33996.0,33995.0,1.02685952]
[1625601583371,1.03814196,33997.0,33995.0,1.02685952]
[1625601583491,1.03811829,33998.0,33995.0,1.02685952]
[1625601583795,1.03811829,33998.0,33996.0,1.31903115]
[1625601583971,0.0152583,33997.0,33996.0,1.31903115]
[1625601584994,1.05321098,33998.0,33996.0,1.31903115]
[1625601585233,1.03791851,33998.0,33997.0,0.24057544]
[1625601585354,0.2929,34001.0,33997.0,1.26624831]
[1625601585355,1.03790309,33999.0,33997.0,1.26624831]
[1625601585475,0.01529223,33998.0,33997.0,1.26624831]
[1625601585594,0.01529223,33998.0,33997.0,0.24057544]
[1625601585715,4.91709223,33998.0,33997.0,0.24057544]
[1625601585834,5.95491936,33998.0,33997.0,0.24057544]
[1625601586074,5.95491936,33998.0,33997.0,1.26621898]
[1625601586075,4.91709223,33998.0,33997.0,1.26621898]
[1625601586678,5.26309563,33998.0,33997.0,1.26621898]
[1625601586975,4.91709223,33998.0,33997.0,1.26621898]
[1625601587156,4.91709223,33998.0,33997.0,0.24057544]
[1625601587636,4.91709223,33998.0,33997.0,1.26616399]
[1625601589322,4.91709223,33998.0,33997.0,1.02558855]
[1625601589680,5.26301221,33998.0,33997.0,1.02558855]
[1625601589799,5.26301221,33998.0,33997.0,1.74731487]
[1625601590222,0.36121221,33998.0,33997.0,1.74731487]
[1625601591063,0.87993795,33998.0,33997.0,2.25979088]
[1625601592266,0.87993795,33998.0,33997.0,1.23420233]
[1625601594070,0.53401797,33998.0,33997.0,2.25936153]
[1625601594911,0.87993766,33998.0,33997.0,2.25936153]
[1625601595210,0.87993766,33998.0,33997.0,1.53763521]
[1625601595330,0.36121192,33998.0,33997.0,1.53763521]
[1625601595510,0.87997888,33998.0,33997.0,1.53763521]
[1625601595630,0.87997888,33998.0,33997.0,1.54155781]
[1625601595812,0.36121192,33998.0,33997.0,1.54155781]
[1625601596112,0.88010132,33998.0,33997.0,2.26328413]
[1625601596354,0.86480909,33998.0,33997.0,2.26328413]
[1625601596474,0.88010615,33998.0,33997.0,2.26328413]
[1625601597375,0.36121675,33998.0,33997.0,2.26328413]
[1625601598037,0.36121675,33998.0,33997.0,2.60919413]
[1625601598218,0.01529706,33998.0,33997.0,3.80585275]
[1625601598338,0.01529706,33998.0,33997.0,5.17288643]
[1625601598758,0.01529578,34000.0,33997.0,5.17288643]
[1625601599120,0.01529578,34000.0,33999.0,2.73411212]
[1625601599363,0.3614051,34001.0,33999.0,4.10096515]
[1625601599542,0.01529537,34000.0,33999.0,4.10488715]
[1625601599660,0.01529537,34000.0,33999.0,1.37077503]
[1625601599904,0.01529537,34000.0,33999.0,4.1040604]
[1625601600202,0.34618288,34001.0,33999.0,4.1040604]
[1625601600444,0.01529526,34000.0,33999.0,4.1040604]
[1625601600624,0.01529526,34000.0,33999.0,1.37077503]